fUST/lending_fUST_20240906
["ID","MTS","AMOUNT","RATE_DAILY","PERIOD"]
[337286001,1725581439039,-17714.94565911,0.00020736,2]
[337286003,1725581440857,-12647.69753415,0.00020736,2]
[337286004,1725581440872,-12485.01700004,0.00020736,2]
[337286006,1725581440885,-15285.6,0.00020736,2]
[337286007,1725581440897,-66316.8045987,0.00020736,2]
[337286008,1725581440908,-899.76,0.00020745,2]
[337286009,1725581440919,-581.51,0.00020745,2]
[337286010,1725581440930,-581.51,0.00020745,2]
[337286011,1725581440942,-581.51,0.00020745,2]
[337286012,1725581440953,-581.51,0.00020745,2]
[337286013,1725581440964,-581.51,0.00020745,2]
[337286014,1725581440976,-581.51,0.00020745,2]
[337286015,1725581440987,-581.51,0.00020745,2]
[337286016,1725581440998,-581.51,0.00020745,2]
[337286017,1725581441007,-581.51,0.00020745,2]
[337286018,1725581441019,-581.51,0.00020745,2]
[337286019,1725581441030,-581.51,0.00020745,2]
[337286020,1725581441040,-426768.05671869,0.00020746,2]
[337286021,1725581441051,-151.0,0.00020748,2]
[337286022,1725581441061,-151.0,0.00020748,2]
[337286023,1725581441071,-151.0,0.00020748,2]
[337286024,1725581441082,-151.0,0.00020748,2]
[337286025,1725581441092,-124450.064792,0.00020749,2]
[337286026,1725581441102,-581.51,0.00020758,2]
[337286027,1725581441112,-581.51,0.00020758,2]
[337286028,1725581441125,-581.51,0.00020758,2]
[337286029,1725581441135,-581.51,0.00020758,2]
[337286030,1725581441144,-581.51,0.00020758,2]
[337286031,1725581441154,-581.51,0.00020758,2]
[337286032,1725581441164,-581.51,0.00020758,2]
[337286033,1725581441174,-581.51,0.00020758,2]
[337286034,1725581441185,-581.51,0.00020758,2]
[337286035,1725581441197,-581.51,0.00020758,2]
[337286036,1725581441207,-581.51,0.00020758,2]
[337286037,1725581441218,-581.51,0.00020758,2]
[337286038,1725581441228,-581.69826493,0.00020758,2]
[337286039,1725581441239,-500.0,0.00020768,2]
[337286040,1725581441249,-500.0,0.00020768,2]
[337286041,1725581441259,-500.0,0.00020768,2]
[337286042,1725581441271,-500.0,0.00020768,2]
[337286043,1725581441282,-500.0,0.00020768,2]
[337286044,1725581441293,-500.0,0.00020768,2]
[337286045,1725581441303,-500.0,0.00020768,2]
[337286046,1725581441314,-500.0,0.00020768,2]
[337286047,1725581441323,-500.0,0.00020768,2]
[337286048,1725581441334,-500.0,0.00020768,2]
[337286049,1725581441343,-500.0,0.00020768,2]
[337286050,1725581441353,-500.0,0.00020768,2]
[337286051,1725581441363,-500.0,0.00020768,2]
[337286052,1725581441372,-500.0,0.00020768,2]
[337286053,1725581441381,-500.0,0.00020768,2]
[337286054,1725581441391,-500.0,0.00020768,2]
[337286055,1725581441400,-500.0,0.00020768,2]
[337286056,1725581441410,-500.0,0.00020768,2]
[337286057,1725581441419,-500.0,0.00020768,2]
[337286058,1725581441428,-500.0,0.00020768,2]
[337286059,1725581441437,-500.0,0.00020768,2]
[337286060,1725581441446,-500.0,0.00020768,2]
[337286061,1725581441455,-500.0,0.00020768,2]
[337286062,1725581441465,-500.0,0.00020768,2]
[337286063,1725581441474,-500.0,0.00020768,2]
[337286064,1725581441483,-500.0,0.00020768,2]
[337286065,1725581441492,-500.0,0.00020768,2]
[337286066,1725581441501,-500.0,0.00020768,2]
[337286067,1725581441510,-500.0,0.00020768,2]
[337286068,1725581441522,-500.0,0.00020768,2]
[337286069,1725581441531,-500.0,0.00020768,2]
[337286070,1725581441538,-282.62294655,0.00020768,2]
[337286071,1725581441547,-600.76,0.00020768,2]
[337286072,1725581441557,-500.0,0.00020768,2]
[337286073,1725581441566,-500.0,0.00020768,2]
[337286074,1725581441575,-500.0,0.00020768,2]
[337286075,1725581441585,-500.0,0.00020768,2]
[337286076,1725581441598,-501.55636019,0.00020768,2]
[337286077,1725581441607,-500.0,0.00020768,2]
[337286078,1725581441617,-500.0,0.00020768,2]
[337286079,1725581441627,-391.18868873,0.00020768,2]
[337286080,1725581441637,-500.0,0.00020768,2]
[337286081,1725581441647,-500.0,0.00020768,2]
[337286082,1725581441656,-500.0,0.00020768,2]
[337286083,1725581441667,-500.0,0.00020768,2]
[337286084,1725581441677,-352.76687448,0.00020768,2]
[337286085,1725581441686,-3329.07,0.00020768,2]
[337286086,1725581441695,-500.0,0.00020768,2]
[337286087,1725581441705,-500.0,0.00020768,2]
[337286088,1725581441714,-500.0,0.00020768,2]
[337286089,1725581441723,-500.0,0.00020768,2]
[337286090,1725581441733,-500.0,0.00020768,2]
[337286091,1725581441742,-500.0,0.00020768,2]
[337286092,1725581441751,-500.0,0.00020768,2]
[337286093,1725581441761,-500.0,0.00020768,2]
[337286094,1725581441774,-500.0,0.00020768,2]
[337286095,1725581441783,-378.55929767,0.00020768,2]
[337286096,1725581441792,-500.0,0.00020768,2]
[337286097,1725581441802,-500.0,0.00020768,2]
[337286098,1725581441811,-500.0,0.00020768,2]
[337286099,1725581441820,-500.0,0.00020768,2]
[337286100,1725581441830,-500.0,0.00020768,2]
[337286101,1725581441839,-500.0,0.00020768,2]
[337286102,1725581441849,-500.0,0.00020768,2]
[337286103,1725581441858,-500.0,0.00020768,2]
[337286104,1725581441867,-500.0,0.00020768,2]
[337286105,1725581441877,-500.0,0.00020768,2]
[337286106,1725581441886,-500.0,0.00020768,2]
[337286107,1725581441895,-500.0,0.00020768,2]
[337286108,1725581441904,-500.0,0.00020768,2]
[337286109,1725581441914,-500.0,0.00020768,2]
[337286110,1725581441923,-500.0,0.00020768,2]
[337286111,1725581441932,-504.030318,0.00020768,2]
[337286112,1725581441941,-500.0,0.00020768,2]
[337286113,1725581441950,-500.0,0.00020768,2]
[337286114,1725581441959,-500.0,0.00020768,2]
[337286115,1725581441969,-500.98091927,0.00020768,2]
[337286116,1725581441978,-500.0,0.00020768,2]
[337286117,1725581441988,-500.0,0.00020768,2]
[337286118,1725581441998,-500.0,0.00020768,2]
[337286119,1725581442008,-500.0,0.00020768,2]
[337286120,1725581442017,-500.0,0.00020768,2]
[337286121,1725581442027,-500.0,0.00020768,2]
[337286122,1725581442036,-500.0,0.00020768,2]
[337286123,1725581442045,-500.0,0.00020768,2]
[337286124,1725581442054,-500.0,0.00020768,2]
[337286125,1725581442063,-502.54423762,0.00020768,2]
[337286126,1725581442072,-331.62518855,0.00020768,2]
[337286127,1725581442081,-500.0,0.00020768,2]
[337286128,1725581442090,-500.0,0.00020768,2]
[337286129,1725581442099,-500.0,0.00020768,2]
[337286130,1725581442109,-197.26559905,0.00020768,2]
[337286131,1725581442118,-500.0,0.00020768,2]
[337286132,1725581442127,-500.0,0.00020768,2]
[337286133,1725581442137,-500.0,0.00020768,2]
[337286134,1725581442146,-500.0,0.00020768,2]
[337286135,1725581442155,-500.0,0.00020768,2]
[337286136,1725581442164,-500.0,0.00020768,2]
[337286137,1725581442174,-500.0,0.00020768,2]
[337286138,1725581442184,-474.85695284,0.00020768,2]
[337286139,1725581442193,-500.0,0.00020768,2]
[337286140,1725581442202,-500.0,0.00020768,2]
[337286141,1725581442212,-500.0,0.00020768,2]
[337286142,1725581442221,-500.0,0.00020768,2]
[337286143,1725581442231,-500.0,0.00020768,2]
[337286144,1725581442241,-500.0,0.00020768,2]
[337286145,1725581442250,-617.46,0.00020768,2]
[337286146,1725581442259,-502.14274389,0.00020768,2]
[337286147,1725581442271,-500.0,0.00020768,2]
[337286148,1725581442280,-500.0,0.00020768,2]
[337286149,1725581442290,-500.0,0.00020768,2]
[337286150,1725581442299,-500.0,0.00020768,2]
[337286151,1725581442309,-500.0,0.00020768,2]
[337286152,1725581442318,-500.0,0.00020768,2]
[337286153,1725581442328,-500.0,0.00020768,2]
[337286154,1725581442337,-500.0,0.00020768,2]
[337286155,1725581442349,-500.0,0.00020768,2]
[337286156,1725581442360,-500.0,0.00020768,2]
[337286157,1725581442371,-503.35821296,0.00020768,2]
[337286158,1725581442381,-500.0,0.00020768,2]
[337286159,1725581442391,-500.0,0.00020768,2]
[337286160,1725581442401,-810.48,0.00020768,2]
[337286161,1725581442410,-500.0,0.00020768,2]
[337286162,1725581442420,-500.0,0.00020768,2]
[337286163,1725581442431,-596.76961468,0.00020768,2]
[337286164,1725581442440,-502.78727735,0.00020768,2]
[337286165,1725581442450,-198.07562049,0.00020768,2]
[337286166,1725581442459,-500.0,0.00020768,2]
[337286167,1725581442469,-500.0,0.00020768,2]
[337286168,1725581442478,-951.36,0.00020768,2]
[337286169,1725581442488,-501.9675282,0.00020768,2]
[337286170,1725581442499,-500.0,0.00020768,2]
[337286171,1725581442508,-500.0,0.00020768,2]
[337286172,1725581442519,-611.75,0.00020768,2]
[337286173,1725581442528,-500.0,0.00020768,2]
[337286174,1725581442538,-500.0,0.00020768,2]
[337286175,1725581442547,-216.4782174,0.00020768,2]
[337286176,1725581442556,-500.0,0.00020768,2]
[337286177,1725581442566,-503.92240914,0.00020768,2]
[337286178,1725581442575,-500.0,0.00020768,2]
[337286179,1725581442584,-503.00874339,0.00020768,2]
[337286180,1725581442597,-227.60252784,0.00020768,2]
[337286181,1725581442606,-500.0,0.00020768,2]
[337286182,1725581442616,-500.0,0.00020768,2]
[337286183,1725581442625,-500.0,0.00020768,2]
[337286184,1725581442636,-504.52708687,0.00020768,2]
[337286185,1725581442645,-500.0,0.00020768,2]
[337286186,1725581442654,-500.0,0.00020768,2]
[337286187,1725581442664,-500.0,0.00020768,2]
[337286188,1725581442675,-500.0,0.00020768,2]
[337286189,1725581442684,-455.85339617,0.00020768,2]
[337286190,1725581442694,-500.0,0.00020768,2]
[337286191,1725581442703,-500.0,0.00020768,2]
[337286192,1725581442712,-500.0,0.00020773,2]
[337286193,1725581442721,-500.0,0.00020773,2]
[337286194,1725581442731,-500.0,0.00020773,2]
[337286195,1725581442741,-500.0,0.00020773,2]
[337286196,1725581442750,-500.0,0.00020775,2]
[337286197,1725581442759,-500.0,0.00020775,2]
[337286198,1725581442770,-500.0,0.00020778,2]
[337286199,1725581442779,-500.0,0.00020778,2]
[337286200,1725581442789,-500.0,0.00020778,2]
[337286201,1725581442798,-500.0,0.00020778,2]
[337286202,1725581442807,-500.0,0.00020778,2]
[337286203,1725581442816,-500.0,0.00020778,2]
[337286204,1725581442825,-151.0,0.00020778,2]
[337286205,1725581442834,-151.0,0.00020778,2]
[337286206,1725581442844,-151.0,0.00020778,2]
[337286207,1725581442854,-151.0,0.00020778,2]
[337286208,1725581442863,-25613.70947807,0.00020778,2]
[337286265,1725581443709,-182.72052618,0.00020735,2]
[337286266,1725581443719,-98836.35531393,0.00020778,2]
[337286267,1725581443728,-500.0,0.00020787,2]
[337286268,1725581443738,-500.0,0.00020787,2]
[337286269,1725581443747,-500.0,0.00020787,2]
[337286270,1725581443757,-500.0,0.00020787,2]
[337286271,1725581443767,-500.0,0.00020787,2]
[337286272,1725581443776,-500.0,0.00020787,2]
[337286273,1725581443786,-500.0,0.00020787,2]
[337286274,1725581443796,-151.0,0.00020788,2]
[337286275,1725581443805,-151.0,0.00020788,2]
[337286278,1725581443815,-262.736572,0.00020788,2]
[337286280,1725581443824,-151.0,0.00020788,2]
[337286281,1725581443833,-163970.28250741,0.00020788,2]
[337286282,1725581443843,-500.0,0.00020798,2]
[337286283,1725581443852,-1056.9,0.000208,2]
[337286284,1725581443861,-500.0,0.00020897,2]
[337286285,1725581443871,-500.0,0.00020898,2]
[337286286,1725581443880,-164.15737138,0.00020898,2]
[337286287,1725581443890,-500.0,0.00020898,2]
[337286288,1725581443899,-500.0,0.00020898,2]
[337286289,1725581443908,-500.0,0.00020898,2]
[337286290,1725581443918,-500.0,0.00020898,2]
[337286291,1725581443928,-500.0,0.00020898,2]
[337286292,1725581443938,-500.0,0.00020898,2]
[337286293,1725581443947,-417.10916598,0.00020898,2]
[337286294,1725581443956,-500.0,0.00020898,2]
[337286295,1725581443966,-500.0,0.00020898,2]
[337286296,1725581443975,-500.0,0.00020909,2]
[337286297,1725581443984,-502.63870876,0.00020909,2]
[337286298,1725581443994,-500.0,0.00020909,2]
[337286299,1725581444004,-202.21917248,0.00020909,2]
[337286300,1725581444013,-345.54163527,0.00020909,2]
[337286301,1725581444023,-169.35113573,0.00020909,2]
[337286302,1725581444032,-500.0,0.00020909,2]
[337286303,1725581444041,-198.83555248,0.00020909,2]
[337286304,1725581444051,-500.0,0.00020909,2]
[337286305,1725581444061,-261.881994,0.00020986,2]
[337286306,1725581444071,-3228.7682109,0.00021009,2]
[337286322,1725581446719,-500.0,0.00020768,2]
[337286324,1725581446731,-202.9817891,0.00021009,2]
[337286325,1725581446741,-94.8182109,0.00021009,2]
[337286326,1725581446774,-405.1817891,0.00021009,2]
[337286327,1725581446783,-500.0,0.00021009,2]
[337286328,1725581446794,-500.0,0.00021009,2]
[337286329,1725581446805,-500.0,0.00021009,2]
[337286330,1725581446816,-899.76,0.00021019,2]
[337286331,1725581446828,-500.0,0.00021042,2]
[337286332,1725581446838,-500.0,0.00021042,2]
[337286333,1725581446851,-500.0,0.00021042,2]
[337286334,1725581446863,-500.0,0.00021042,2]
[337286335,1725581446875,-500.0,0.00021042,2]
[337286336,1725581446885,-510.76282748,0.00021042,2]
[337286337,1725581446895,-500.0,0.00021042,2]
[337286338,1725581446905,-507.72028425,0.00021042,2]
[337286339,1725581446916,-500.0,0.00021042,2]
[337286340,1725581446926,-500.0,0.00021042,2]
[337286341,1725581446935,-500.0,0.00021042,2]
[337286342,1725581446945,-448.27287464,0.00021042,2]
[337286343,1725581446958,-500.0,0.00021042,2]
[337286344,1725581446968,-500.0,0.00021042,2]
[337286345,1725581446978,-506.44482077,0.00021042,2]
[337286346,1725581446988,-500.0,0.00021042,2]
[337286347,1725581446998,-311.39,0.00021042,2]
[337286348,1725581447008,-566.12461014,0.00021042,2]
[337286349,1725581475747,7000.0,0.000205,2]
[337286369,1725582502900,171.16414,0.00019418,2]
[337286370,1725582516351,10076.27885534,0.0002,2]
[337286371,1725582522264,4300.5947835,0.0002,2]
[337286372,1725582523130,20806.3048956,0.0002,2]
[337286373,1725582525349,174.30696263,0.0002,2]
[337286401,1725582632114,-453.36670112,0.00020545,2]
[337286421,1725582638082,-822.74162539,0.00020545,2]
[337286451,1725582640113,-836.25391377,0.00020545,2]
[337286453,1725582640123,-1390.84359588,0.00020638,2]
[337286455,1725582640132,-300.0,0.00020643,2]
[337286457,1725582640141,-3145.77,0.00020644,2]
[337286459,1725582640150,-500.0,0.00020644,2]
[337286461,1725582640159,-862.27,0.00020644,2]
[337286463,1725582640168,-581.51,0.00020644,2]
[337286465,1725582640177,-500.0,0.00020644,2]
[337286467,1725582640188,-500.0,0.00020644,2]
[337286469,1725582640197,-500.0,0.00020645,2]
[337286471,1725582640206,-500.0,0.00020645,2]
[337286473,1725582640218,-500.0,0.00020645,2]
[337286475,1725582640227,-500.0,0.00020645,2]
[337286477,1725582640236,-452.60642823,0.00020645,2]
[337286480,1725582640248,-47.39357177,0.00020645,2]
[337286482,1725582640257,-500.0,0.00020645,2]
[337286484,1725582640266,-600.76,0.00020645,2]
[337286486,1725582640275,-500.0,0.00020645,2]
[337286488,1725582640285,-500.0,0.00020645,2]
[337286490,1725582640294,-500.0,0.00020645,2]
[337286491,1725582640303,-500.0,0.00020645,2]
[337286493,1725582640313,-501.55636019,0.00020645,2]
[337286495,1725582640322,-500.0,0.00020645,2]
[337286497,1725582640331,-500.0,0.00020645,2]
[337286499,1725582640341,-500.0,0.00020645,2]
[337286501,1725582640350,-391.18868873,0.00020645,2]
[337286503,1725582640359,-500.0,0.00020645,2]
[337286505,1725582640368,-500.0,0.00020645,2]
[337286507,1725582640377,-500.0,0.00020645,2]
[337286509,1725582640386,-500.0,0.00020645,2]
[337286511,1725582640396,-352.76687448,0.00020645,2]
[337286513,1725582640404,-500.0,0.00020645,2]
[337286515,1725582640413,-500.0,0.00020645,2]
[337286517,1725582640422,-378.55929767,0.00020645,2]
[337286519,1725582640431,-500.0,0.00020645,2]
[337286521,1725582640439,-500.0,0.00020645,2]
[337286523,1725582640449,-500.0,0.00020645,2]
[337286525,1725582640458,-500.0,0.00020645,2]
[337286527,1725582640468,-500.0,0.00020645,2]
[337286529,1725582640477,-500.0,0.00020645,2]
[337286531,1725582640486,-500.0,0.00020645,2]
[337286533,1725582640495,-500.0,0.00020645,2]
[337286535,1725582640505,-500.0,0.00020645,2]
[337286537,1725582640514,-500.0,0.00020645,2]
[337286539,1725582640523,-500.0,0.00020645,2]
[337286541,1725582640532,-500.0,0.00020645,2]
[337286543,1725582640542,-500.0,0.00020645,2]
[337286545,1725582640552,-500.0,0.00020645,2]
[337286547,1725582640561,-500.0,0.00020645,2]
[337286549,1725582640571,-500.0,0.00020645,2]
[337286551,1725582640581,-500.0,0.00020645,2]
[337286553,1725582640590,-504.030318,0.00020645,2]
[337286555,1725582640600,-500.98091927,0.00020645,2]
[337286557,1725582640609,-500.0,0.00020645,2]
[337286559,1725582640619,-500.0,0.00020645,2]
[337286561,1725582640629,-500.0,0.00020645,2]
[337286563,1725582640638,-500.0,0.00020645,2]
[337286565,1725582640648,-500.0,0.00020645,2]
[337286567,1725582640658,-500.0,0.00020645,2]
[337286569,1725582640668,-197.26559905,0.00020645,2]
[337286571,1725582640677,-500.0,0.00020645,2]
[337286573,1725582640686,-500.0,0.00020645,2]
[337286575,1725582640695,-500.0,0.00020645,2]
[337286577,1725582640706,-500.0,0.00020645,2]
[337286579,1725582640717,-474.85695284,0.00020645,2]
[337286581,1725582640726,-500.0,0.00020645,2]
[337286583,1725582640737,-502.54423762,0.00020645,2]
[337286586,1725582640748,-500.0,0.00020645,2]
[337286588,1725582640757,-500.0,0.00020645,2]
[337286590,1725582640767,-500.0,0.00020645,2]
[337286592,1725582640777,-500.0,0.00020645,2]
[337286594,1725582640787,-500.0,0.00020645,2]
[337286596,1725582640797,-500.0,0.00020645,2]
[337286598,1725582640808,-500.0,0.00020645,2]
[337286600,1725582640818,-331.62518855,0.00020645,2]
[337286602,1725582640827,-500.0,0.00020645,2]
[337286604,1725582640837,-502.14274389,0.00020645,2]
[337286606,1725582640847,-500.0,0.00020645,2]
[337286608,1725582640856,-500.0,0.00020645,2]
[337286610,1725582640866,-500.0,0.00020645,2]
[337286612,1725582640875,-500.0,0.00020645,2]
[337286615,1725582640885,-500.0,0.00020645,2]
[337286617,1725582640896,-500.0,0.00020645,2]
[337286619,1725582640905,-500.0,0.00020645,2]
[337286621,1725582640914,-500.0,0.00020645,2]
[337286623,1725582640925,-500.0,0.00020645,2]
[337286625,1725582640936,-500.0,0.00020645,2]
[337286627,1725582640946,-500.0,0.00020645,2]
[337286629,1725582640955,-500.0,0.00020645,2]
[337286631,1725582640966,-500.0,0.00020645,2]
[337286633,1725582640976,-500.0,0.00020645,2]
[337286635,1725582640985,-500.0,0.00020645,2]
[337286637,1725582640994,-617.46,0.00020645,2]
[337286639,1725582641003,-503.35821296,0.00020645,2]
[337286641,1725582641014,-500.0,0.00020645,2]
[337286643,1725582641023,-500.0,0.00020645,2]
[337286645,1725582641033,-500.0,0.00020645,2]
[337286647,1725582641042,-500.0,0.00020645,2]
[337286649,1725582641051,-500.0,0.00020645,2]
[337286651,1725582641061,-500.0,0.00020645,2]
[337286653,1725582641070,-596.76961468,0.00020645,2]
[337286655,1725582641080,-500.0,0.00020645,2]
[337286657,1725582641089,-198.07562049,0.00020645,2]
[337286659,1725582641099,-500.0,0.00020645,2]
[337286661,1725582641109,-501.9675282,0.00020645,2]
[337286663,1725582641118,-500.0,0.00020645,2]
[337286665,1725582641127,-500.0,0.00020645,2]
[337286667,1725582641136,-500.0,0.00020645,2]
[337286669,1725582641145,-500.0,0.00020645,2]
[337286671,1725582641155,-500.0,0.00020645,2]
[337286674,1725582641166,-500.0,0.00020645,2]
[337286676,1725582641175,-500.0,0.00020645,2]
[337286678,1725582641185,-216.4782174,0.00020645,2]
[337286680,1725582641196,-500.0,0.00020645,2]
[337286682,1725582641206,-502.78727735,0.00020645,2]
[337286684,1725582641218,-500.71971944,0.00020645,2]
[337286686,1725582641234,-503.00874339,0.00020645,2]
[337286688,1725582641243,-503.92240914,0.00020645,2]
[337286690,1725582641253,-500.0,0.00020645,2]
[337286692,1725582641262,-500.0,0.00020645,2]
[337286694,1725582641272,-500.0,0.00020645,2]
[337286696,1725582641281,-500.0,0.00020645,2]
[337286698,1725582641291,-504.52708687,0.00020645,2]
[337286700,1725582641302,-500.0,0.00020645,2]
[337286702,1725582641311,-500.0,0.00020645,2]
[337286704,1725582641320,-500.0,0.00020645,2]
[337286706,1725582641330,-227.60252784,0.00020645,2]
[337286708,1725582641340,-500.0,0.00020645,2]
[337286710,1725582641349,-500.0,0.00020645,2]
[337286712,1725582641359,-209.59647792,0.00020645,2]
[337286714,1725582641368,-455.85339617,0.00020645,2]
[337286716,1725582641378,-500.0,0.00020645,2]
[337286718,1725582641388,-500.0,0.00020645,2]
[337286720,1725582641398,-254.41865276,0.00020645,2]
[337286722,1725582641407,-500.0,0.00020645,2]
[337286724,1725582641417,-500.0,0.00020645,2]
[337286726,1725582641426,-158.93889665,0.00020645,2]
[337286728,1725582641435,-500.0,0.00020645,2]
[337286730,1725582641445,-500.0,0.00020645,2]
[337286732,1725582641454,-500.0,0.00020645,2]
[337286734,1725582641463,-292.19209175,0.00020645,2]
[337286736,1725582641473,-553.89,0.00020645,2]
[337286738,1725582641483,-500.0,0.00020645,2]
[337286741,1725582641494,-500.0,0.00020645,2]
[337286743,1725582641504,-500.0,0.00020645,2]
[337286745,1725582641514,-500.0,0.00020645,2]
[337286747,1725582641524,-500.0,0.00020645,2]
[337286749,1725582641534,-786.89,0.00020645,2]
[337286751,1725582641544,-611.75,0.00020645,2]
[337286753,1725582641554,-500.0,0.00020699,2]
[337286755,1725582641563,-255.38270456,0.00020699,2]
[337286757,1725582641574,-500.0,0.00020699,2]
[337286759,1725582641583,-402.99467156,0.00020699,2]
[337286761,1725582641593,-163.73079083,0.00020699,2]
[337286763,1725582641605,-500.0,0.00020699,2]
[337286765,1725582641614,-500.0,0.00020699,2]
[337286768,1725582641624,-500.0,0.00020699,2]
[337286770,1725582641634,-500.0,0.00020699,2]
[337286771,1725582641643,-500.0,0.00020699,2]
[337286774,1725582641652,-522.98498285,0.00020699,2]
[337286776,1725582641662,-500.0,0.00020699,2]
[337286778,1725582641673,-33946.19860302,0.000207,15]
[337286780,1725582641683,-426768.05671769,0.000207,2]
[337286782,1725582641692,-581.51,0.00020732,2]
[337286784,1725582641702,-3329.07,0.00020733,2]
[337286786,1725582641714,-500.0,0.00020733,2]
[337286788,1725582641723,-500.0,0.00020733,2]
[337286790,1725582641735,-500.0,0.00020733,2]
[337286792,1725582641746,-500.0,0.00020733,2]
[337286794,1725582641757,-500.0,0.00020733,2]
[337286796,1725582641767,-500.0,0.00020733,2]
[337286813,1725582641907,-951.36,0.00020733,2]
[337286815,1725582641918,-500.0,0.00020734,2]
[337286817,1725582641930,-500.0,0.00020734,2]
[337286819,1725582641940,-500.0,0.00020734,2]
[337286821,1725582641952,-503.2820605,0.00020735,2]
[337286823,1725582641962,-72050.6358067,0.00020737,2]
[337286825,1725582641973,-73042.2413208,0.00020737,2]
[337286827,1725582641983,-57764.86973014,0.00020738,2]
[337286903,1725582642779,-836.63009517,0.00020738,2]
[337287249,1725582645924,-3190.36,0.00020644,2]
[337287250,1725582645937,-2308.33266353,0.00020738,2]
[337287259,1725582646036,-55083.58532261,0.00020738,2]
[337287731,1725583728714,2017.2,0.00025,31]
[337287732,1725583728735,2018.0,0.00025,31]
[337287733,1725583728757,2018.0,0.00025,31]
[337287734,1725583728779,2018.0,0.00025,31]
[337287735,1725583728801,2018.0,0.00025,31]
[337287736,1725583728825,2018.8,0.00025,31]
[337287737,1725583728846,2018.8,0.00025,31]
[337287738,1725583728866,2018.8,0.00025,31]
[337287739,1725583728887,2018.8,0.00025,31]
[337287740,1725583728911,2018.8,0.00025,31]
[337287741,1725583728931,2018.8,0.00025,31]
[337287742,1725583728951,2018.8,0.00025,31]
[337287743,1725583728972,2018.8,0.00025,31]
[337287744,1725583728992,2018.8,0.00025,31]
[337287745,1725583729014,2018.8,0.00025,31]
[337287746,1725583729035,2018.8,0.00025,31]
[337287747,1725583729055,2018.8,0.00025,31]
[337287748,1725583729078,2018.8,0.00025,31]
[337287749,1725583729098,2018.8,0.00025,31]
[337287750,1725583729119,2018.8,0.00025,31]
[337287751,1725583729145,2018.8,0.00025,31]
[337287752,1725583729166,2018.8,0.00025,31]
[337287753,1725583729188,2018.8,0.00025,31]
[337287754,1725583729209,2018.8,0.00025,31]
[337287755,1725583729230,2018.8,0.00025,31]
[337287756,1725583729252,2018.8,0.00025,31]
[337287757,1725583729272,2018.8,0.00025,31]
[337287758,1725583729297,2018.8,0.00025,31]
[337287759,1725583729322,2018.8,0.00025,31]
[337287760,1725583729345,2018.8,0.00025,31]
[337287761,1725583729367,2018.8,0.00025,31]
[337287762,1725583729389,2018.8,0.00025,31]
[337287763,1725583729410,2018.8,0.00025,31]
[337287764,1725583729430,2018.8,0.00025,31]
[337287765,1725583729451,2018.8,0.00025,31]
[337287766,1725583729472,2018.8,0.00025,31]
[337287767,1725583729493,2018.8,0.00025,31]
[337287768,1725583729513,2018.8,0.00025,31]